[Event "*** Titled Tuesday Blitz"]
[Site "Chess.com"]
[Date "2020.12.01"]
[Round "4"]
[White "SlovenskiZmaj"]
[Black "paulrusan"]
[Result "1/2-1/2"]
[WhiteElo "2452"]
[BlackElo "2253"]
[TimeControl "180+1"]
[EndTime "10:38:56 PST"]
[Termination "Game drawn by repetition"]

1. d4 {[%clk 0:02:46.1]} 1... Nf6 {[%clk 0:02:57.3]} 2. Bg5 {[%clk 0:02:45.8]}
2... Ne4 {[%clk 0:02:55.6]} 3. Bf4 {[%clk 0:02:46.1]} 3... c5 {[%clk 0:02:55.6]}
4. f3 {[%clk 0:02:45.8]} 4... Qa5+ {[%clk 0:02:55.1]} 5. c3 {[%clk 0:02:45.9]}
5... Nf6 {[%clk 0:02:54.3]} 6. d5 {[%clk 0:02:46.6]} 6... Qb6 {[%clk 0:02:54.7]}
7. Bc1 {[%clk 0:02:47.1]} 7... g6 {[%clk 0:02:52.4]} 8. e4 {[%clk 0:02:47.2]}
8... d6 {[%clk 0:02:52.5]} 9. Nd2 {[%clk 0:02:44.8]} 9... Bg7 {[%clk 0:02:52.2]}
10. Nc4 {[%clk 0:02:39.7]} 10... Qc7 {[%clk 0:02:52.2]} 11. a4 {[%clk
0:02:40.6]} 11... O-O {[%clk 0:02:50.2]} 12. Ne2 {[%clk 0:02:36.6]} 12... Nbd7
{[%clk 0:02:48.4]} 13. h4 {[%clk 0:02:35.6]} 13... b6 {[%clk 0:02:47.3]} 14. Bf4
{[%clk 0:02:33.5]} 14... Ba6 {[%clk 0:02:38.2]} 15. Ng3 {[%clk 0:02:24.7]} 15...
h5 {[%clk 0:02:34.2]} 16. Be2 {[%clk 0:02:01.7]} 16... Bxc4 {[%clk 0:02:32.8]}
17. Bxc4 {[%clk 0:02:01.3]} 17... Ne5 {[%clk 0:02:25]} 18. Bxe5 {[%clk 0:02:01]}
18... dxe5 {[%clk 0:02:24.8]} 19. Qe2 {[%clk 0:01:13.5]} 19... Bh6 {[%clk
0:02:23.4]} 20. Nf1 {[%clk 0:01:04.5]} 20... Ne8 {[%clk 0:02:21]} 21. Bb5 {[%clk
0:01:00.5]} 21... Nd6 {[%clk 0:02:20.3]} 22. Bc6 {[%clk 0:01:00.6]} 22... Rab8
{[%clk 0:02:18.9]} 23. b4 {[%clk 0:01:00.9]} 23... cxb4 {[%clk 0:01:58.7]} 24.
cxb4 {[%clk 0:01:01.8]} 24... a5 {[%clk 0:01:59]} 25. b5 {[%clk 0:00:58.8]}
25... Nb7 {[%clk 0:01:58.9]} 26. g4 {[%clk 0:00:50.4]} 26... hxg4 {[%clk
0:01:56.9]} 27. fxg4 {[%clk 0:00:51.3]} 27... Bf4 {[%clk 0:01:49.5]} 28. g5
{[%clk 0:00:49.4]} 28... Kg7 {[%clk 0:01:49.2]} 29. h5 {[%clk 0:00:37.1]} 29...
gxh5 {[%clk 0:01:48.4]} 30. Rxh5 {[%clk 0:00:34.4]} 30... Nc5 {[%clk 0:01:42.6]}
31. Nd2 {[%clk 0:00:19.5]} 31... Rh8 {[%clk 0:01:37.3]} 32. Nc4 {[%clk
0:00:18.1]} 32... Rxh5 {[%clk 0:01:34.2]} 33. Qxh5 {[%clk 0:00:19]} 33... Rh8
{[%clk 0:01:34]} 34. Qf3 {[%clk 0:00:19]} 34... Nb3 {[%clk 0:01:22.6]} 35. Qxb3
{[%clk 0:00:16.5]} 35... Rh1+ {[%clk 0:01:21.9]} 36. Kf2 {[%clk 0:00:17.2]}
36... Rxa1 {[%clk 0:01:21.9]} 37. Qh3 {[%clk 0:00:17.4]} 37... Bxg5 {[%clk
0:01:14.5]} 38. Qg4 {[%clk 0:00:16.8]} 38... f6 {[%clk 0:01:09.7]} 39. Ne3
{[%clk 0:00:16.7]} 39... e6 {[%clk 0:00:49.4]} 40. dxe6 {[%clk 0:00:16]} 40...
Qd8 {[%clk 0:00:39.3]} 41. Nf5+ {[%clk 0:00:15.8]} 41... Kg6 {[%clk 0:00:38.3]}
42. Bd7 {[%clk 0:00:10.7]} 42... Ra2+ {[%clk 0:00:31.7]} 43. Ke1 {[%clk
0:00:11.2]} 43... Qh8 {[%clk 0:00:20.1]} 44. Ne7+ {[%clk 0:00:08.9]} 44... Kg7
{[%clk 0:00:20.3]} 45. Nf5+ {[%clk 0:00:09.4]} 45... Kg6 {[%clk 0:00:19.6]} 46.
Ne7+ {[%clk 0:00:06.9]} 46... Kg7 {[%clk 0:00:19.3]} 47. Nf5+ {[%clk 0:00:07]}
47... Kg6 {[%clk 0:00:12.8]} 1/2-1/2

[Event "*** Titled Tuesday Blitz"]
[Site "Chess.com"]
[Date "2020.12.01"]
[Round "4"]
[White "MaxLeto"]
[Black "coco_crc"]
[Result "1-0"]
[WhiteElo "2370"]
[BlackElo "2178"]
[TimeControl "180+1"]
[EndTime "10:39:00 PST"]
[Termination "MaxLeto won by checkmate"]

1. g4 {[%clk 0:02:55.6]} 1... e5 {[%clk 0:02:55.8]} 2. h4 {[%clk 0:02:54]} 2...
Ne7 {[%clk 0:02:56.3]} 3. g5 {[%clk 0:02:53.6]} 3... Ng6 {[%clk 0:02:56.1]} 4.
h5 {[%clk 0:02:52.3]} 4... Nf4 {[%clk 0:02:54.4]} 5. d4 {[%clk 0:02:40.1]} 5...
d6 {[%clk 0:02:44.7]} 6. dxe5 {[%clk 0:02:35.9]} 6... dxe5 {[%clk 0:02:45.6]} 7.
Qxd8+ {[%clk 0:02:36.7]} 7... Kxd8 {[%clk 0:02:46.1]} 8. Nf3 {[%clk 0:02:37]}
8... Bd6 {[%clk 0:02:44.9]} 9. Nc3 {[%clk 0:02:31.7]} 9... Nc6 {[%clk
0:02:42.5]} 10. Bxf4 {[%clk 0:02:20.8]} 10... exf4 {[%clk 0:02:41.5]} 11. O-O-O
{[%clk 0:02:21.7]} 11... Ke8 {[%clk 0:02:32.6]} 12. Nb5 {[%clk 0:02:20.4]} 12...
Ke7 {[%clk 0:02:29]} 13. Rh4 {[%clk 0:02:09.7]} 13... Be6 {[%clk 0:02:21.2]} 14.
Nxd6 {[%clk 0:02:01]} 14... cxd6 {[%clk 0:02:22.1]} 15. Rxf4 {[%clk 0:02:01.7]}
15... a6 {[%clk 0:02:19.5]} 16. Nd4 {[%clk 0:01:40.5]} 16... h6 {[%clk
0:02:15.9]} 17. Nf5+ {[%clk 0:01:08.9]} 17... Bxf5 {[%clk 0:02:12.9]} 18. Rxf5
{[%clk 0:01:09.8]} 18... hxg5 {[%clk 0:02:12.9]} 19. Rxg5 {[%clk 0:01:10.7]}
19... Rag8 {[%clk 0:02:08.3]} 20. Bg2 {[%clk 0:01:04.8]} 20... Rh6 {[%clk
0:02:07]} 21. f4 {[%clk 0:01:02.7]} 21... Nd8 {[%clk 0:01:57.6]} 22. e3 {[%clk
0:00:58.8]} 22... Ne6 {[%clk 0:01:55.7]} 23. Rf5 {[%clk 0:00:40.2]} 23... b5
{[%clk 0:01:38.7]} 24. Bf3 {[%clk 0:00:34.9]} 24... g6 {[%clk 0:01:36.5]} 25.
hxg6 {[%clk 0:00:32.9]} 25... Rhxg6 {[%clk 0:01:37.4]} 26. Rfd5 {[%clk
0:00:31.6]} 26... Rg3 {[%clk 0:01:30.3]} 27. Rf1 {[%clk 0:00:27.9]} 27... Nc5
{[%clk 0:01:19.7]} 28. b3 {[%clk 0:00:22.1]} 28... Rg1 {[%clk 0:01:18]} 29. Rxg1
{[%clk 0:00:19.3]} 29... Rxg1+ {[%clk 0:01:18.9]} 30. Rd1 {[%clk 0:00:13.1]}
30... Rg3 {[%clk 0:01:18.4]} 31. Rf1 {[%clk 0:00:12.5]} 31... f5 {[%clk
0:01:12.2]} 32. a3 {[%clk 0:00:11.8]} 32... Ke6 {[%clk 0:01:11.4]} 33. Kd2
{[%clk 0:00:11.8]} 33... d5 {[%clk 0:00:50.8]} 34. Kc3 {[%clk 0:00:10.4]} 34...
Kd6 {[%clk 0:00:40.8]} 35. b4 {[%clk 0:00:07.5]} 35... Ne4+ {[%clk 0:00:24.1]}
36. Bxe4 {[%clk 0:00:03.8]} 36... dxe4 {[%clk 0:00:25]} 37. Kd4 {[%clk
0:00:02.3]} 37... Rg2 {[%clk 0:00:25.2]} 38. Rh1 {[%clk 0:00:02.2]} 38... Rd2+
{[%clk 0:00:19.4]} 39. Kc3 {[%clk 0:00:02.2]} 39... Re2 {[%clk 0:00:18.3]} 40.
Rh6+ {[%clk 0:00:03.1]} 40... Kd5 {[%clk 0:00:17.9]} 41. Rxa6 {[%clk 0:00:03.7]}
41... Rxe3+ {[%clk 0:00:18]} 42. Kd2 {[%clk 0:00:04.6]} 42... Rf3 {[%clk
0:00:17.1]} 43. Rb6 {[%clk 0:00:04.5]} 43... Kc4 {[%clk 0:00:16.8]} 44. Rc6+
{[%clk 0:00:04.6]} 44... Kd4 {[%clk 0:00:16.9]} 45. Rc5 {[%clk 0:00:05.5]} 45...
Rxf4 {[%clk 0:00:16.7]} 46. c3# {[%clk 0:00:05.9]} 1-0

[Event "*** Titled Tuesday Blitz"]
[Site "Chess.com"]
[Date "2020.12.01"]
[Round "4"]
[White "suyu28"]
[Black "rasmussvane"]
[Result "0-1"]
[WhiteElo "2655"]
[BlackElo "2881"]
[TimeControl "180+1"]
[EndTime "10:39:01 PST"]
[Termination "rasmussvane won on time"]

1. d4 {[%clk 0:03:00.1]} 1... d5 {[%clk 0:02:59.5]} 2. Bf4 {[%clk 0:02:59.9]}
2... Nf6 {[%clk 0:02:58.3]} 3. e3 {[%clk 0:03:00.3]} 3... c5 {[%clk 0:02:57.9]}
4. c3 {[%clk 0:02:58.7]} 4... Nc6 {[%clk 0:02:56.7]} 5. Nd2 {[%clk 0:02:58.2]}
5... Bf5 {[%clk 0:02:56.5]} 6. Qb3 {[%clk 0:02:55.6]} 6... Qc8 {[%clk 0:02:50]}
7. Ngf3 {[%clk 0:02:53.8]} 7... e6 {[%clk 0:02:50.2]} 8. Be2 {[%clk 0:02:52.2]}
8... h6 {[%clk 0:02:49.4]} 9. h3 {[%clk 0:02:49.5]} 9... Be7 {[%clk 0:02:49]}
10. O-O {[%clk 0:02:49.1]} 10... O-O {[%clk 0:02:49.1]} 11. dxc5 {[%clk
0:02:36.2]} 11... Bxc5 {[%clk 0:02:48.6]} 12. c4 {[%clk 0:02:36.3]} 12... d4
{[%clk 0:02:38.8]} 13. exd4 {[%clk 0:02:32.9]} 13... Nxd4 {[%clk 0:02:39.7]} 14.
Nxd4 {[%clk 0:02:32.3]} 14... Bxd4 {[%clk 0:02:40.6]} 15. Nf3 {[%clk 0:02:32.3]}
15... Bc5 {[%clk 0:02:40.6]} 16. Be3 {[%clk 0:02:27.9]} 16... Be4 {[%clk
0:02:32.1]} 17. Rfd1 {[%clk 0:02:25.8]} 17... Qc7 {[%clk 0:02:27.4]} 18. Rac1
{[%clk 0:02:24.3]} 18... Rfd8 {[%clk 0:02:23.7]} 19. Qc3 {[%clk 0:02:15.7]}
19... Rac8 {[%clk 0:02:19.6]} 20. b4 {[%clk 0:02:03.2]} 20... Bxe3 {[%clk
0:02:11.5]} 21. Qxe3 {[%clk 0:02:04.1]} 21... a6 {[%clk 0:02:06.3]} 22. a3
{[%clk 0:02:01.1]} 22... a5 {[%clk 0:01:57.1]} 23. c5 {[%clk 0:01:54.1]} 23...
axb4 {[%clk 0:01:37.4]} 24. axb4 {[%clk 0:01:53.8]} 24... e5 {[%clk 0:01:25.3]}
25. Nd2 {[%clk 0:01:39.6]} 25... Bc6 {[%clk 0:01:19.5]} 26. Nc4 {[%clk
0:01:39.3]} 26... Rxd1+ {[%clk 0:01:19.3]} 27. Rxd1 {[%clk 0:01:36.7]} 27... Nd5
{[%clk 0:01:19.3]} 28. Qb3 {[%clk 0:00:49.7]} 28... Nf4 {[%clk 0:00:57.5]} 29.
Bf1 {[%clk 0:00:49.7]} 29... Qe7 {[%clk 0:00:47]} 30. Nd6 {[%clk 0:00:33.6]}
30... Ra8 {[%clk 0:00:43.6]} 31. g3 {[%clk 0:00:26.4]} 31... Ne6 {[%clk
0:00:39.2]} 32. Qe3 {[%clk 0:00:23.2]} 32... Qf6 {[%clk 0:00:33.8]} 33. b5
{[%clk 0:00:20.5]} 33... Bf3 {[%clk 0:00:31.3]} 34. Re1 {[%clk 0:00:19.5]} 34...
Nd4 {[%clk 0:00:22.8]} 35. Qc3 {[%clk 0:00:09.2]} 35... Bd5 {[%clk 0:00:19.5]}
36. Bg2 {[%clk 0:00:07.9]} 36... Qe6 {[%clk 0:00:14]} 37. Re3 {[%clk 0:00:04.6]}
37... Bxg2 {[%clk 0:00:13]} 38. Kxg2 {[%clk 0:00:05.5]} 38... Qd5+ {[%clk
0:00:13.6]} 39. Kh2 {[%clk 0:00:02.9]} 39... Ra2 {[%clk 0:00:13.2]} 40. Qe1
{[%clk 0:00:01.8]} 40... Nf3+ {[%clk 0:00:13.2]} 41. Rxf3 {[%clk 0:00:02.3]}
41... Qxf3 {[%clk 0:00:14.1]} 42. Kg1 {[%clk 0:00:02.2]} 42... Qd5 {[%clk
0:00:12.3]} 43. Ne4 {[%clk 0:00:01.9]} 43... Qd4 {[%clk 0:00:10.3]} 0-1

[Event "*** Titled Tuesday Blitz"]
[Site "Chess.com"]
[Date "2020.12.01"]
[Round "4"]
[White "oezs95"]
[Black "Nadtkins"]
[Result "1-0"]
[WhiteElo "2324"]
[BlackElo "2504"]
[TimeControl "180+1"]
[EndTime "10:39:01 PST"]
[Termination "oezs95 won by resignation"]

1. e4 {[%clk 0:03:00.9]} 1... e5 {[%clk 0:02:58.9]} 2. Nf3 {[%clk 0:03:01]} 2...
Nc6 {[%clk 0:02:59.4]} 3. Bc4 {[%clk 0:03:01.6]} 3... Be7 {[%clk 0:02:57.9]} 4.
O-O {[%clk 0:03:00.6]} 4... Nf6 {[%clk 0:02:57]} 5. d3 {[%clk 0:02:59.5]} 5...
h6 {[%clk 0:02:54.1]} 6. Re1 {[%clk 0:02:58]} 6... Nh7 {[%clk 0:02:53.5]} 7. c3
{[%clk 0:02:56.6]} 7... Ng5 {[%clk 0:02:53.7]} 8. Nbd2 {[%clk 0:02:50.8]} 8...
d6 {[%clk 0:02:53.4]} 9. Nxg5 {[%clk 0:02:37.7]} 9... hxg5 {[%clk 0:02:50.8]}
10. Nf1 {[%clk 0:02:36.5]} 10... a6 {[%clk 0:02:34.6]} 11. d4 {[%clk 0:02:36]}
11... Bf6 {[%clk 0:02:11.2]} 12. Be3 {[%clk 0:02:34]} 12... Bd7 {[%clk
0:02:02.6]} 13. Ng3 {[%clk 0:02:32.8]} 13... g6 {[%clk 0:02:01.2]} 14. a4 {[%clk
0:02:19.7]} 14... Qe7 {[%clk 0:01:56.7]} 15. Qd3 {[%clk 0:01:31.4]} 15... Rh4
{[%clk 0:01:54.4]} 16. b4 {[%clk 0:01:21.6]} 16... Kf8 {[%clk 0:01:52.9]} 17. b5
{[%clk 0:01:21.2]} 17... Na5 {[%clk 0:01:53]} 18. Ba2 {[%clk 0:01:18.6]} 18...
Kg7 {[%clk 0:01:51]} 19. Rad1 {[%clk 0:01:08.5]} 19... Rah8 {[%clk 0:01:48.8]}
20. Nf1 {[%clk 0:01:08.3]} 20... axb5 {[%clk 0:01:36]} 21. axb5 {[%clk
0:01:09.2]} 21... b6 {[%clk 0:01:36.9]} 22. Bd5 {[%clk 0:01:07.2]} 22... g4
{[%clk 0:01:30.1]} 23. c4 {[%clk 0:01:03.8]} 23... exd4 {[%clk 0:01:22.8]} 24.
Bxd4 {[%clk 0:01:03.9]} 24... Be5 {[%clk 0:01:22.9]} 25. Qg3 {[%clk 0:00:53]}
25... f6 {[%clk 0:01:02.2]} 26. Bxe5 {[%clk 0:00:51.9]} 26... dxe5 {[%clk
0:01:02.6]} 27. Qe3 {[%clk 0:00:44.2]} 27... Be8 {[%clk 0:00:58.8]} 28. Rc1
{[%clk 0:00:41.2]} 28... Bf7 {[%clk 0:00:53.4]} 29. c5 {[%clk 0:00:37.4]} 29...
Rb8 {[%clk 0:00:43.8]} 30. Red1 {[%clk 0:00:31.3]} 30... Rhh8 {[%clk 0:00:34.5]}
31. cxb6 {[%clk 0:00:26.9]} 31... cxb6 {[%clk 0:00:35.4]} 32. Bxf7 {[%clk
0:00:24.9]} 32... Qxf7 {[%clk 0:00:34.8]} 33. Rd6 {[%clk 0:00:24.9]} 33... Nc4
{[%clk 0:00:32.9]} 34. Rxc4 {[%clk 0:00:20.4]} 34... Qxc4 {[%clk 0:00:33.8]} 35.
Rd7+ {[%clk 0:00:21.2]} 35... Kg8 {[%clk 0:00:32.8]} 36. Qd2 {[%clk 0:00:17.7]}
36... Rh7 {[%clk 0:00:31.4]} 37. Rd8+ {[%clk 0:00:12.7]} 37... Rxd8 {[%clk
0:00:31.6]} 38. Qxd8+ {[%clk 0:00:13.4]} 38... Kg7 {[%clk 0:00:32.2]} 39. Qxb6
{[%clk 0:00:13.5]} 39... Qxe4 {[%clk 0:00:30.4]} 40. Qd8 {[%clk 0:00:11.2]}
40... f5 {[%clk 0:00:25.2]} 41. Qe7+ {[%clk 0:00:09.4]} 41... Kg8 {[%clk
0:00:23.6]} 42. Qe8+ {[%clk 0:00:09.3]} 42... Kg7 {[%clk 0:00:24.1]} 43. b6
{[%clk 0:00:09.5]} 43... Kh6 {[%clk 0:00:23.1]} 44. Qf8+ {[%clk 0:00:09.2]}
44... Rg7 {[%clk 0:00:22]} 45. Qh8+ {[%clk 0:00:09]} 45... Rh7 {[%clk
0:00:22.5]} 46. Qf8+ {[%clk 0:00:09.3]} 46... Kh5 {[%clk 0:00:22.2]} 47. Ng3+
{[%clk 0:00:07.9]} 47... Kg5 {[%clk 0:00:22.6]} 48. Nxe4+ {[%clk 0:00:08.8]}
48... fxe4 {[%clk 0:00:23.4]} 49. g3 {[%clk 0:00:08.2]} 49... e3 {[%clk
0:00:23.4]} 50. Qd8+ {[%clk 0:00:08.8]} 50... Kf5 {[%clk 0:00:23.1]} 51. fxe3
{[%clk 0:00:09.7]} 51... Ke4 {[%clk 0:00:23.6]} 52. Qe8 {[%clk 0:00:09.9]} 52...
Kf3 {[%clk 0:00:21.4]} 53. Qxg6 {[%clk 0:00:10.3]} 53... Rd7 {[%clk 0:00:19.9]}
54. Qf5+ {[%clk 0:00:10.7]} 54... Ke2 {[%clk 0:00:19.6]} 55. Qxd7 {[%clk
0:00:11.6]} 1-0

[Event "*** Titled Tuesday Blitz"]
[Site "Chess.com"]
[Date "2020.12.01"]
[Round "4"]
[White "tigra"]
[Black "FontVella8"]
[Result "1-0"]
[WhiteElo "2777"]
[BlackElo "2507"]
[TimeControl "180+1"]
[EndTime "10:39:02 PST"]
[Termination "tigra won on time"]

1. Nf3 {[%clk 0:03:00.9]} 1... d5 {[%clk 0:02:59.4]} 2. g3 {[%clk 0:02:59.2]}
2... c6 {[%clk 0:02:59]} 3. Bg2 {[%clk 0:02:58.1]} 3... Bf5 {[%clk 0:02:59.4]}
4. d3 {[%clk 0:02:52.6]} 4... h6 {[%clk 0:02:59]} 5. O-O {[%clk 0:02:51.9]} 5...
Nf6 {[%clk 0:02:59.1]} 6. b3 {[%clk 0:02:52.3]} 6... e6 {[%clk 0:02:58.3]} 7.
Bb2 {[%clk 0:02:53.2]} 7... Nbd7 {[%clk 0:02:58.1]} 8. Nbd2 {[%clk 0:02:54.1]}
8... Be7 {[%clk 0:02:55.5]} 9. e4 {[%clk 0:02:54.3]} 9... dxe4 {[%clk 0:02:54]}
10. dxe4 {[%clk 0:02:50.5]} 10... Bh7 {[%clk 0:02:53.1]} 11. Qe2 {[%clk
0:02:48]} 11... O-O {[%clk 0:02:51.2]} 12. Ne5 {[%clk 0:02:44.4]} 12... Qc7
{[%clk 0:02:48.1]} 13. f4 {[%clk 0:02:35]} 13... Rad8 {[%clk 0:02:41.7]} 14. a4
{[%clk 0:02:22]} 14... a6 {[%clk 0:02:39]} 15. a5 {[%clk 0:02:21.3]} 15... Nxe5
{[%clk 0:02:21]} 16. Bxe5 {[%clk 0:02:20.5]} 16... Bd6 {[%clk 0:02:18.2]} 17.
Bxf6 {[%clk 0:02:18.7]} 17... gxf6 {[%clk 0:02:15.9]} 18. Nc4 {[%clk 0:02:15.3]}
18... Bc5+ {[%clk 0:02:09.8]} 19. Kh1 {[%clk 0:02:15]} 19... Rd4 {[%clk
0:01:59.7]} 20. c3 {[%clk 0:02:09.6]} 20... Rd7 {[%clk 0:01:55.6]} 21. Qg4+
{[%clk 0:02:04.5]} 21... Kh8 {[%clk 0:01:48.9]} 22. Qh5 {[%clk 0:02:04.3]} 22...
Be7 {[%clk 0:01:39.9]} 23. Qxh6 {[%clk 0:02:04.2]} 23... Rd3 {[%clk 0:01:33.5]}
24. Rac1 {[%clk 0:00:59.6]} 24... Rfd8 {[%clk 0:01:31.5]} 25. b4 {[%clk
0:00:55]} 25... c5 {[%clk 0:00:55.9]} 26. f5 {[%clk 0:00:53.9]} 26... e5 {[%clk
0:00:48.6]} 27. Nb6 {[%clk 0:00:50]} 27... cxb4 {[%clk 0:00:26.2]} 28. cxb4
{[%clk 0:00:49.1]} 28... Qd6 {[%clk 0:00:22.1]} 29. Nd5 {[%clk 0:00:42]} 29...
Bf8 {[%clk 0:00:21]} 30. Qh5 {[%clk 0:00:41.7]} 30... Rd7 {[%clk 0:00:16.7]} 31.
Rc8 {[%clk 0:00:38.6]} 31... Rd8 {[%clk 0:00:15.6]} 32. Rxd8 {[%clk 0:00:37]}
32... Qxd8 {[%clk 0:00:16.5]} 33. Qxf7 {[%clk 0:00:37.3]} 33... Bg7 {[%clk
0:00:15.4]} 34. Rc1 {[%clk 0:00:33.3]} 34... Qf8 {[%clk 0:00:11.1]} 35. Qxf8+
{[%clk 0:00:29.9]} 35... Bxf8 {[%clk 0:00:12]} 36. Nxf6 {[%clk 0:00:30.4]} 36...
Kg7 {[%clk 0:00:11.3]} 37. Nxh7 {[%clk 0:00:28.8]} 37... Kxh7 {[%clk 0:00:11.4]}
38. Rc7+ {[%clk 0:00:19.5]} 38... Kh6 {[%clk 0:00:10.6]} 39. h4 {[%clk
0:00:16.3]} 39... Bxb4 {[%clk 0:00:09.8]} 40. g4 {[%clk 0:00:16.2]} 40... Be1
{[%clk 0:00:09.3]} 41. g5+ {[%clk 0:00:16.5]} 41... Kh5 {[%clk 0:00:09.5]} 42.
f6 {[%clk 0:00:16.8]} 42... Bg3 {[%clk 0:00:08.2]} 43. Bf1 {[%clk 0:00:11.8]}
43... Rf3 {[%clk 0:00:07.1]} 44. Be2 {[%clk 0:00:11.7]} 44... Kg4 {[%clk
0:00:05.8]} 45. Bxf3+ {[%clk 0:00:12.6]} 45... Kxf3 {[%clk 0:00:05]} 46. f7
{[%clk 0:00:13.5]} 1-0

[Event "*** Titled Tuesday Blitz"]
[Site "Chess.com"]
[Date "2020.12.01"]
[Round "4"]
[White "03revilo"]
[Black "albi1999"]
[Result "0-1"]
[WhiteElo "2330"]
[BlackElo "2583"]
[TimeControl "180+1"]
[EndTime "10:39:05 PST"]
[Termination "albi1999 won by resignation"]

1. e4 {[%clk 0:03:00.9]} 1... e5 {[%clk 0:02:58.5]} 2. Nf3 {[%clk 0:03:00.6]}
2... Nc6 {[%clk 0:02:54.3]} 3. Bc4 {[%clk 0:03:00]} 3... Bc5 {[%clk 0:02:52.8]}
4. O-O {[%clk 0:03:00.4]} 4... Nf6 {[%clk 0:02:51]} 5. d4 {[%clk 0:03:00.9]}
5... Bxd4 {[%clk 0:02:50.9]} 6. Nxd4 {[%clk 0:03:00.9]} 6... Nxd4 {[%clk
0:02:51.8]} 7. f4 {[%clk 0:03:01.2]} 7... d6 {[%clk 0:02:51.6]} 8. fxe5 {[%clk
0:03:01.8]} 8... dxe5 {[%clk 0:02:52.5]} 9. Bg5 {[%clk 0:03:02.1]} 9... Qe7
{[%clk 0:02:51.3]} 10. Na3 {[%clk 0:03:02.5]} 10... Be6 {[%clk 0:02:43.3]} 11.
c3 {[%clk 0:03:02.4]} 11... Bxc4 {[%clk 0:02:37.9]} 12. Bxf6 {[%clk 0:03:02.9]}
12... gxf6 {[%clk 0:02:37.2]} 13. Nxc4 {[%clk 0:03:02.4]} 13... Ne6 {[%clk
0:02:32.9]} 14. b4 {[%clk 0:03:02.6]} 14... Rg8 {[%clk 0:02:27]} 15. Kh1 {[%clk
0:03:02.2]} 15... Rg6 {[%clk 0:02:21.6]} 16. Ne3 {[%clk 0:03:01.9]} 16... Qd7
{[%clk 0:02:19.6]} 17. Qh5 {[%clk 0:02:49.5]} 17... O-O-O {[%clk 0:02:16.1]} 18.
Rad1 {[%clk 0:02:48.6]} 18... Qe8 {[%clk 0:02:07.6]} 19. Qxh7 {[%clk 0:02:39.1]}
19... Rxd1 {[%clk 0:01:59.5]} 20. Rxd1 {[%clk 0:02:40]} 20... b6 {[%clk
0:01:49.9]} 21. Nd5 {[%clk 0:01:57.6]} 21... Nf4 {[%clk 0:01:43.3]} 22. Nxf4
{[%clk 0:01:56.7]} 22... exf4 {[%clk 0:01:44.2]} 23. Qh3+ {[%clk 0:01:54.1]}
23... Qe6 {[%clk 0:01:31.3]} 24. Qd3 {[%clk 0:01:47.4]} 24... Rg8 {[%clk
0:01:23.7]} 25. a4 {[%clk 0:01:37.2]} 25... Re8 {[%clk 0:01:16.2]} 26. Re1
{[%clk 0:01:21.4]} 26... Rd8 {[%clk 0:01:13.3]} 27. Qa6+ {[%clk 0:01:20.2]}
27... Kb8 {[%clk 0:01:13.6]} 28. h3 {[%clk 0:01:12.4]} 28... f3 {[%clk 0:01:13]}
29. Qf1 {[%clk 0:01:07.2]} 29... fxg2+ {[%clk 0:01:12.7]} 30. Qxg2 {[%clk
0:01:07.8]} 30... Rh8 {[%clk 0:01:10.6]} 31. Kh2 {[%clk 0:01:07.1]} 31... Qe5+
{[%clk 0:01:11.1]} 32. Qg3 {[%clk 0:01:07.2]} 32... Qe6 {[%clk 0:01:03.3]} 33.
a5 {[%clk 0:01:02.6]} 33... Kb7 {[%clk 0:01:01.4]} 34. a6+ {[%clk 0:00:56.8]}
34... Kxa6 {[%clk 0:00:59.5]} 35. Re3 {[%clk 0:00:42.4]} 35... Kb7 {[%clk
0:00:58.8]} 36. e5 {[%clk 0:00:33.2]} 36... fxe5 {[%clk 0:00:56.1]} 37. Rxe5
{[%clk 0:00:34.1]} 37... Qd7 {[%clk 0:00:51.6]} 38. Qf3+ {[%clk 0:00:28.3]}
38... Kb8 {[%clk 0:00:51]} 39. Re2 {[%clk 0:00:27]} 39... Qd6+ {[%clk
0:00:46.4]} 40. Kh1 {[%clk 0:00:24.5]} 40... Qd1+ {[%clk 0:00:41.3]} 41. Kh2
{[%clk 0:00:22.9]} 41... Qd6+ {[%clk 0:00:40.8]} 42. Kh1 {[%clk 0:00:22]} 42...
Rg8 {[%clk 0:00:40.4]} 43. Rf2 {[%clk 0:00:14.4]} 43... Rg7 {[%clk 0:00:34.1]}
44. Re2 {[%clk 0:00:06.8]} 44... Rg8 {[%clk 0:00:31.4]} 45. Rf2 {[%clk
0:00:05.7]} 45... Qg6 {[%clk 0:00:31.8]} 46. Rf1 {[%clk 0:00:03.3]} 46... f5
{[%clk 0:00:30.7]} 47. Kh2 {[%clk 0:00:02.3]} 47... Qd6+ {[%clk 0:00:29.8]} 48.
Kh1 {[%clk 0:00:02.5]} 48... Rg3 {[%clk 0:00:24.4]} 49. Qf2 {[%clk 0:00:02]}
49... Rxh3+ {[%clk 0:00:22.9]} 50. Kg1 {[%clk 0:00:01.7]} 50... Qg6+ {[%clk
0:00:21.8]} 51. Qg2 {[%clk 0:00:02]} 51... Rg3 {[%clk 0:00:22.4]} 0-1